Cogmind - Beta 17.1 @@@ ROGUE MODE // 2026.09.18 @ 01:07:11 Player: Kite Result: Self-destructed Performance ------------- Evolutions (7) 3500 Regions Visited (21) 4200 Robots Destroyed (279) 1395 Value Destroyed (12353) 12353 Prototype IDs (47) 940 Alien Tech Used (15) 3000 Bonus (16891) 16891 TOTAL SCORE: 42279 Bonus ------- Triggered Max Security 1000 High Alert Combat Kills 1014 Follower Combat Kills 3255 Entered DSFs 500 Network Hubs Disabled 200 Registered with UFD 300 Met Optimus in HQ 500 Met Zhirov 300 Built Enhanced Grunts 300 Met R17 at Cetus 500 Used Core Reset Matrix 3000 Met R17 at Research 2000 Scanned by Researcher 500 Pursued by Intercept 500 Integrated Exoskeleton 5000 Friendly Fire -1978 Cogmind --------- Core Integrity 112/1300 Matter 258/300 Energy 270/270 System Corruption 13% +Membrane Temperature Cool (0) +ITN Movement Walking (30) Location -3/Section 7 Parts ------- > --- POWER (1) -------- Light Antimatter Reactor > --- PROPULSION (3) --- Sigix Exoskeleton > --- UTILITY (3) ------ (None) > --- WEAPON (2) ------- Sigix Sheargun Sigix Sheargun > --- INVENTORY (5) ---- Medium Storage Unit Improved Weapon Cycler Improved Point Defense System LU-1G1's Laser Shovel Power Sword Peak State ------------ > --- POWER ------------ Reinforced Antimatter Reactor Vortex Chain Reactor > --- PROPULSION ------- Centrium Heavy Treads Centrium Heavy Treads High-density Centrium Heavy Treads > --- UTILITY ---------- Huge Storage Unit Experimental Energy Well Advanced Signal Interpreter Microactuators Makeshift Transmission Jammer Centrium Medium Armor Plating Medium Regenerative Plating > --- WEAPON ----------- Core Stripper Molecular Scythe Sigix Broadsword > --- INVENTORY -------- Advanced Heavy Treads High-density Centrium Heavy Treads High-density Centrium Heavy Treads Medium Storage Unit Improved Matter Compressor Advanced Sensor Array Long-range Sensor Array Long-range Terrain Scanner Improved Weapon Cycler Improved Actuator Array Advanced Actuator Array Dimensional Node Initializer Transdimensional Reconstructor Core Reset Matrix Subatomic Replicator Advanced Remote Datajack LU-1G1's Laser Shovel Molecular Scythe Molecular Scythe Molecular Scythe Molecular Scythe Molecular Scythe [Rating: 208] Favorites ----------- Power Nuclear Core Engine Improved Deuterium Engine Power Core Nuclear Core Reactor Quantum Reactor Propulsion Improved Medium Treads Treads Improved Medium Treads Leg Sigix Exoskeleton Wheel Wheel Utility Huge Storage Unit Device Makeshift Transmission Jammer Storage Huge Storage Unit Processor Improved Targeting Computer Hackware Advanced Hacking Suite Protection Medium Armor Plating Artifact Microwarp Drive Weapon Chainsword Energy Gun Medium Laser Energy Cannon HERF Cannon Ballistic Gun Improved Assault Rifle Ballistic Cannon Bore Cannon Launcher Micro-nuke Launcher Special Weapon Improved Remote Datajack Impact Weapon Heavy Mace Slashing Weapon Chainsword Piercing Weapon Spear Special Melee Weapon Improved Datajack Build | -11 -10 -10 -9 -9 -9 -9 -6 -6 -5 -5 -5 -5 -4 -4 -4 -4 -4 -4 -3 -3 -3 ------- Run | Yrd Mat Min Mat Sto Rec Scr Fac DSF Fac Upp Upp Zhi Pro Fac Ext Cet Arc Hub Res Qua Sec Slots Evolved 14 | . . . 2 . . . 6 . 2 . . . . 2 . . . . 2 . . Power 2 | . . . . . . . . . 1 . . . . . . . . . 1 . . Propulsion 4 | . . . 1 . . . 2 . . . . . . . . . . . 1 . . Utility 5 | . . . 1 . . . 2 . . . . . . 2 . . . . . . . Weapon 3 | . . . . . . . 2 . 1 . . . . . . . . . . . . Parts Attached 274 | 7 2 . 29 8 1 8 5 19 25 7 8 3 1 26 16 15 9 7 20 28 30 Power 39 | 1 . . 2 . . 1 . 1 3 1 2 1 . 3 2 . . 2 4 10 6 Engine 3 | 1 . . . . . 1 . 1 . . . . . . . . . . . . . Core 8 | . . . 2 . . . . . 3 . 2 . . 1 . . . . . . . Reactor 28 | . . . . . . . . . . 1 . 1 . 2 2 . . 2 4 10 6 Propulsion 67 | 2 . . 5 5 . 2 2 8 8 1 3 . . 6 5 4 3 . 4 6 3 Treads 58 | 2 . . 4 2 . 1 2 8 8 1 3 . . 6 1 4 3 . 4 6 3 Leg . | . . . . . . . . . . . . . . . . . . . . . . Wheel 9 | . . . 1 3 . 1 . . . . . . . . 4 . . . . . . Hover . | . . . . . . . . . . . . . . . . . . . . . . Flight . | . . . . . . . . . . . . . . . . . . . . . . Utility 97 | 1 2 . 8 1 . 1 2 6 10 5 2 2 1 10 3 9 5 2 5 5 17 Device 41 | . 1 . 2 . . . . 3 5 4 1 . 1 5 2 . 4 . 1 2 10 Storage 9 | 1 . . 1 . . . . . . . . 1 . . 1 1 . . 1 2 1 Processor 15 | . . . 1 . . 1 . 1 3 1 1 . . 3 . . . . 1 . 3 Hackware 6 | . . . . . . . 1 . . . . . . . . . 1 2 1 . 1 Protection 25 | . 1 . 4 1 . . 1 2 2 . . 1 . 2 . 8 . . 1 1 1 Artifact 1 | . . . . . . . . . . . . . . . . . . . . . 1 Weapon 71 | 3 . . 14 2 1 4 1 4 4 . 1 . . 7 6 2 1 3 7 7 4 Energy Gun 9 | 2 . . 5 . . . . . . . . . . . . . . . 1 1 . Energy Cannon 5 | . . . 2 . . . . . . . . . . . 1 . . . 2 . . Ballistic Gun 9 | 1 . . 5 1 . 1 1 . . . . . . . . . . . . . . Ballistic Cannon 3 | . . . . . . . . . . . . . . . 2 . . . . 1 . Launcher 6 | . . . 1 1 . . . . . . 1 . . 1 . . . 1 . 1 . Special Weapon 7 | . . . 1 . . 1 . . 1 . . . . . 2 1 . . . 1 . Impact Weapon 7 | . . . . . . 2 . . 1 . . . . 2 . . . . . 2 . Slashing Weapon 18 | . . . . . . . . 4 2 . . . . 1 1 1 1 1 4 1 2 Piercing Weapon 6 | . . . . . . . . . . . . . . 3 . . . 1 . . 2 Special Melee Weapon 1 | . . . . . 1 . . . . . . . . . . . . . . . . Unidentified Prototypes 27 | . . . 2 . . 1 . . . . . 4 . 1 . 4 . 1 2 8 4 Corrupted Parts 5 | . . . . . . . . . . . . . . . . 1 4 . . . . System Corruption 35 | . . . . . . . . . . . . . . . . 4 31 . . . . Parts Lost 58 | . . . 5 1 . . . . 4 4 . . . 7 4 2 . 1 1 6 23 Power 12 | . . . . . . . . . 1 1 . . . . . . . 1 . 3 6 Propulsion 14 | . . . 1 1 . . . . 1 1 . . . 2 2 . . . . 2 4 Utility 22 | . . . 3 . . . . . 2 2 . . . 2 2 . . . . 1 10 Weapon 10 | . . . 1 . . . . . . . . . . 3 . 2 . . 1 . 3 Highest Loss Streak 11 | . . . 2 1 . . . . 3 3 . . . 3 2 1 . 1 1 2 11 To Critical Strikes . | . . . . . . . . . . . . . . . . . . . . . . Average Backups 22 | . 2 5 21 24 24 24 20 22 23 22 24 24 25 24 24 22 21 22 21 21 18 Power . | . 1 1 1 . . . . . . . . . 1 . . . . . . . 1 Propulsion 6 | . . . 6 7 8 7 5 12 12 10 7 7 7 7 5 4 5 6 5 3 2 Utility 6 | . 1 3 5 4 3 4 5 4 5 6 9 8 8 7 7 7 8 8 9 9 7 Weapon 4 | . . 1 6 10 11 9 4 1 2 2 3 3 3 2 5 4 4 3 3 3 1 Tool/Special . | . . . . . . . . . . . . . . . . . . . . . . Unused Backups 64 | . . . 11 2 . 7 . 12 6 1 2 3 . 3 5 1 . . 1 3 7 Power 8 | . . . 4 . . . . . 1 . 1 . . . 1 . . . . . 1 Propulsion 14 | . . . 1 . . 1 . 8 . . . . . . 2 . . . . . 2 Utility 23 | . . . 3 1 . 1 . . 5 1 . 3 . 3 . 1 . . . 2 3 Weapon 16 | . . . 3 1 . 5 . 2 . . 1 . . . 2 . . . 1 1 . Tool/Special 3 | . . . . . . . . 2 . . . . . . . . . . . . 1 Average Slot Usage (%) 95 | . 97 100 99 99 100 99 86 99 98 97 99 97 100 99 99 94 89 88 90 92 74 Engine 1 | . 14 14 . . . 9 6 6 . . . . . . . . . . . . . Core 4 | . . . 10 11 11 1 . . 8 3 9 11 11 2 . . . . . . . Reactor 5 | . . . . . . . . . . 4 . . . 7 10 10 10 9 13 13 9 Treads 21 | . 28 28 31 31 . 7 16 28 28 29 29 29 29 25 15 20 17 15 21 22 13 Wheel 5 | . . . 1 1 33 25 13 4 . . . . . . 9 1 . . . . . Device 10 | . 8 14 5 . . . . 5 10 11 15 14 17 21 22 11 13 14 8 14 15 Storage 7 | . 14 14 11 11 11 11 6 6 5 5 5 5 5 5 6 5 10 5 4 4 4 Processor 6 | . . . 7 11 11 11 6 5 6 5 6 5 5 8 5 4 . . 1 4 4 Protection 6 | . 3 . 8 11 11 11 8 9 3 3 . . . . 1 12 10 10 10 8 3 Energy Gun 1 | . 28 28 6 . . . . . . . . . . . . . . . . . . Ballistic Gun 5 | . . . 14 21 16 13 24 20 . . . . . . . . . . . . . Impact Weapon 2 | . . . . . . 5 . . 2 4 4 5 4 3 4 . . . . 2 . Slashing Weapon 10 | . . . . . . . . 4 24 23 23 23 23 17 2 12 14 11 14 19 18 Piercing Weapon 2 | . . . . . . . . . . . . . . 3 14 10 10 8 1 . 1 Peak Build Rating 208 | 6 7 7 22 22 21 29 38 74 82 78 81 82 83 111 107 135 141 145 165 208 207 Average Rating 85 | 4 6 7 18 21 20 23 34 60 76 75 78 77 80 101 98 126 134 140 157 167 189 On Entrance 71 | . 6 7 7 22 21 20 26 38 72 71 76 79 80 82 102 95 135 141 143 160 199 Avg Prop Armor Cover (%) 11 | . . . 17 14 . 7 13 13 . 4 . . . . 18 20 . . . 10 13 Naked Turns . | . . . . . . . . . . . . . . . . . . . . . . Heaviest Build 191 | 14 17 15 100 100 100 103 114 116 145 136 129 124 130 161 168 166 171 171 172 190 191 Greatest Support 270 | 40 40 40 63 63 36 36 26 150 147 130 130 130 130 147 150 164 187 187 214 270 270 Greatest Overweight (x) 9 | . . . 6 6 2 3 4 4 1 1 . . . 1 9 5 1 . 1 1 1 Average Overweight (x) 1 | . . . 1 1 2 2 4 1 . . . . . . 4 . . . . . . Largest Inventory Capacity 25 | 8 8 8 25 25 25 25 25 25 25 25 25 25 25 25 25 25 25 25 25 25 25 Average Capacity 24 | 6 8 8 24 25 25 25 25 25 25 25 25 25 25 25 25 25 25 25 25 25 24 Most Carried 25 | 1 5 6 25 25 25 25 24 25 25 25 25 25 25 25 25 25 25 25 25 25 25 Average Carried 23 | . 2 5 21 24 24 24 21 24 24 22 24 24 25 24 24 24 24 24 24 24 23 Final Capacity 25 | 8 8 8 25 25 25 25 25 25 25 25 25 25 25 25 25 25 25 25 25 25 5 Final Carried 25 | 1 5 6 25 24 25 25 21 25 24 25 25 25 25 25 25 25 25 25 25 25 5 Class Distribution -------------------- 21% | Mutant 15% | Scavenger-Gladiator 14% | Commander-Mutant 11% | Gladiator 9% | Commander-Gladiator 6% | Derelict-Mutant 6% | Assassin 4% | Scavenger-Assassin 4% | Scavenger-Mutant Dominant Class ---------------- Mutant | -10/Materials Mutant | -10/Mines Mutant | -9/Materials Mutant | -9/Storage Commander-Mutant | -9/Recycling Commander-Mutant | -9/Scraptown Commander-Tank | -6/Factory Tank | -6/DSF Scavenger-Gladiator | -5/Factory Scavenger-Gladiator | -5/Upper Caves Derelict-Mutant | -5/Upper Caves Derelict-Mutant | -5/Zhirov Derelict-Mutant | -4/Proximity Caves Gladiator | -4/Factory Commander-Gladiator | -4/Extension Commander-Gladiator | -4/Cetus Scavenger-Gladiator | -4/Archives Commander-Gladiator | -4/Hub_04(d) Scavenger-Mutant | -3/Research Scavenger-Gladiator | -3/Quarantine Assassin | -3/Section 7 Resources | -11 -10 -10 -9 -9 -9 -9 -6 -6 -5 -5 -5 -5 -4 -4 -4 -4 -4 -4 -3 -3 -3 ----------- Run | Yrd Mat Min Mat Sto Rec Scr Fac DSF Fac Upp Upp Zhi Pro Fac Ext Cet Arc Hub Res Qua Sec Matter Collected 9164 | 208 82 54 830 522 66 133 . 503 425 115 253 71 86 595 1113 240 201 256 647 1368 1396 Remotely . | . . . . . . . . . . . . . . . . . . . . . . Salvage Created 15347 | . 156 . 2081 1042 336 . . 555 1322 447 . . 109 680 2340 526 288 446 469 2132 2418 Parts 743 | . 10 . 133 52 12 . . 19 61 14 . . 4 35 83 36 30 25 14 83 132 Haulers Intercepted 13 | . . . 5 2 . . . . . . . . . . 4 . . 1 1 . . Recyclers Shooed 5 | . . . 3 1 . . . . . . . . . . 1 . . . . . . Parts Field Recycled . | . . . . . . . . . . . . . . . . . . . . . . Retrieved Matter . | . . . . . . . . . . . . . . . . . . . . . . Parts Self-Destructed 37 | . . . . . . . . . . 33 . . 4 . . . . . . . . Prevented 1 | . . . . . . . . . . 1 . . . . . . . . . . . Parts Restored . | . . . . . . . . . . . . . . . . . . . . . . Kills | -11 -10 -10 -9 -9 -9 -9 -6 -6 -5 -5 -5 -5 -4 -4 -4 -4 -4 -4 -3 -3 -3 ------- Run | Yrd Mat Min Mat Sto Rec Scr Fac DSF Fac Upp Upp Zhi Pro Fac Ext Cet Arc Hub Res Qua Sec Combat Hostiles Destroyed 181 | . 3 . 27 15 2 . . 8 11 7 . . 3 10 20 4 . . 7 26 38 Melee 107 | . . . . . . . . . 7 7 . . 1 10 15 . . . 5 25 37 Guns 48 | . 3 . 23 12 2 . . 8 . . . . . . . . . . . . . Cannons 6 | . . . 4 . . . . . . . . . . . 2 . . . . . . AOE 10 | . . . . 3 . . . . 4 . . . 2 . . . . . . . 1 Classes Destroyed 22 | . 2 . 7 1 2 . . 2 1 1 . . 1 1 1 . . . . 1 2 Worker 19 | . . . 9 6 . . . . 1 . . . . . 2 . . . . . 1 Builder 18 | . . . 5 2 1 . . . 4 . . . . . 1 . . 4 . 1 . Tunneler 2 | . . . . . . . . . 1 . . . . 1 . . . . . . . Hauler 13 | . . . 5 2 . . . . . . . . . . 4 . . 1 1 . . Recycler 22 | . . . 5 3 2 . . . 5 . . . . . 5 . . 2 . . . Minesweeper 1 | . . . . . . . . . . 1 . . . . . . . . . . . Operator 11 | . 1 . 1 . . . . . . . . . . . 1 . 8 . . . . Drone 2 | . . . . . . . . . . . . . 2 . . . . . . . . Watcher 6 | . . . 3 1 . . . . . . . . . . . . . . . 2 . Swarmer 28 | . . . 3 4 . . . . . . . . . . 4 . . . 5 . 12 Saboteur 1 | . . . . . . . . . . . . . . . . . . . . . 1 Grunt 63 | . 3 . 15 6 1 . . 5 5 6 . . . . 8 . . . 1 10 3 Brawler 5 | . . . . 1 . . . 1 1 . . . . . . . . . . 1 1 Duelist 2 | . . . . . . . . . . . . . . . 1 . . . . . 1 Researcher 1 | . . . . . . . . . . . . . . . . . . . . . 1 Sentry 31 | . . . 9 4 . . . . 2 . . . 1 2 4 . . . 1 . 8 Demolisher 1 | . . . . . 1 . . . . . . . . . . . . . . . . Specialist 2 | . . . . . . . . 2 . . . . . . . . . . . . . Hunter 9 | . . . . . . . . . . . . . . 4 2 . . . . 2 1 Programmer 31 | . . . . . 1 . . . 3 1 . . . 4 1 . . . . 12 9 Heavy 2 | . . . . . . . . 1 . . . . . . . . . . . . 1 Cetus Guard 4 | . . . . . . . . . . . . . . . . 4 . . . . . S7 Guard 1 | . . . . . . . . . . . . . . . . . . . . . 1 Fortress 1 | . . . . . . . . . . . . . . . . . . . . 1 . Thug 1 | . . . . . . . . . . . . . . . . 1 . . . . . Butcher 1 | . . . . . . . . . . . . . . . . 1 . . . . . Best Kill Streak 10 | . 4 . 7 10 2 . . 3 6 3 . . 2 2 7 4 1 4 5 5 5 Combat Bots Only 6 | . 3 . 4 4 1 . . 3 4 3 . . 2 2 6 4 . . 5 5 5 Max Kills in Single Turn 6 | . 1 . 2 3 1 . . 2 6 2 . . 1 1 1 2 1 1 1 2 2 Gunslinging . | . . . . . . . . . . . . . . . . . . . . . . Exploded 4 | . . . . 2 . . . . 4 . . . 1 . . . . . . . 1 Melee 2 | . . . . . . . . . 1 2 . . 1 1 1 . . . 1 2 2 Uniques/NPCs Destroyed 1 | . . . . . . . . . . . . . . . . 1 . . . . . A7 (-4/Cetus) Combat | -11 -10 -10 -9 -9 -9 -9 -6 -6 -5 -5 -5 -5 -4 -4 -4 -4 -4 -4 -3 -3 -3 -------- Run | Yrd Mat Min Mat Sto Rec Scr Fac DSF Fac Upp Upp Zhi Pro Fac Ext Cet Arc Hub Res Qua Sec Hostile Shots Fired 1605 | . 22 . 118 62 10 . . 29 110 73 . . 4 179 104 25 1 30 53 272 513 Missed 415 | . 7 . 30 16 4 . . 8 34 20 . . 1 57 35 8 . 13 20 58 104 Hits 1190 | . 15 . 88 46 6 . . 21 76 53 . . 3 122 69 17 1 17 33 214 409 Melee 21 | . . . . . . . . . 4 . . . . . . . . . . 2 15 Projectile 1169 | . 15 . 88 46 6 . . 21 72 53 . . 3 122 69 17 1 17 33 212 394 AOE 2 | . . . . . . . . . 1 . . . . . . . . . . . 1 Critical Strikes 69 | . . . 2 3 . . . . 7 . . . 1 7 4 . . . . 22 23 Actively Blocked 1 | . . . . . . . . . . . . . . . . . . . . . 1 Part Disruptions 7 | . . . . . . . . . 1 1 . . . . . . . . . 2 3 Damage Taken 22566 | . 166 . 1094 560 87 . . 525 2230 1023 . . 62 2024 730 411 26 622 751 4794 7461 Core 2330 | . . . 172 39 15 . . 19 221 83 . . . 217 41 30 . 38 52 309 1094 Absorbed by Shields 3167 | . . . . . 5 . . 34 . . . . . 93 733 76 . . . . 2226 Redirected to Shielding 160 | . . . 108 . . . . . . . . . . . . . . . . 29 23 Ignored by Resistances 720 | . . . . . . . . . 12 . . . . . . . . . . . 708 Regen/Repaired (Parts) 1724 | . . . . . . . . . . . . . . . . . . 99 82 849 694 Core Remaining (%) 80 | 100 . 100 . . . 43 . 97 . . . . 69 . . . . 71 . . . Volleys Fired 367 | . 12 1 129 65 11 . . 18 3 . . . 2 . 57 9 3 20 17 10 10 Largest 4 | . 2 2 2 2 2 . . 4 1 . . . 1 . 2 1 1 1 1 1 2 Hottest 200 | . 90 90 130 46 46 . . 92 7 . . . 43 . 96 88 88 88 110 68 200 Shots Fired 642 | . 24 2 254 127 20 1 . 72 3 . . . 2 . 62 10 3 22 17 10 13 Gun 474 | . 24 2 224 124 20 1 . 72 . . . . . . . . . . . . 7 Cannon 99 | . . . 29 . . . . . . . . . . . 26 3 3 17 17 4 . Launcher 17 | . . . 1 3 . . . . . . . . 2 . . 6 . 5 . . . Special 52 | . . . . . . . . . 3 . . . . . 36 1 . . . 6 6 Kinetic 355 | . . . 126 124 20 1 . 72 . . . . . . 8 . . . . 4 . Thermal 138 | . 12 1 125 . . . . . . . . . . . . . . . . . . Explosive 9 | . . . 1 3 . . . . . . . . . . . . . 5 . . . Electromagnetic 81 | . 12 1 2 . . . . . . . . . 2 . 18 9 3 17 17 . . Slashing 7 | . . . . . . . . . . . . . . . . . . . . . 7 Robot Hit Streak 24 | . 5 . 14 20 22 3 . 21 24 . . . 1 . 17 3 3 4 6 2 4 Robot Miss Streak 6 | . 3 . 4 2 1 . . 2 . . . . 1 . 6 1 . 3 2 2 1 Penetration Max . | . . . . . . . . . . . . . . . . . . . . . . Secondary Targets 4 | . 1 . 1 . . . . 2 . . . . . . . . . . . . . Max Gunslinging Chain 1 | . 1 . 1 . . . . 1 . . . . . . . . . . . . . Shots Hit Robots 1025 | . 17 . 178 96 17 1 . 52 43 36 . . 4 54 142 12 15 19 24 142 173 Core Hits 437 | . 7 . 106 38 7 . . 25 25 16 . . 3 20 47 17 8 9 8 40 61 Critical Kills 2 | . . . 1 . . . . . . . . . . . 1 . . . . . . Critical Parts Destroyed 11 | . . . . 2 . . . 1 . 1 . . . 1 4 . . . . 2 . Critical Strikes 88 | . 2 . 7 2 . . . 1 6 7 . . 1 4 16 1 1 1 3 23 13 Burn 6 | . 1 . 5 . . . . . . . . . . . . . . . . . . Destroy 7 | . . . 1 2 . . . 1 . . . . . . 3 . . . . . . Corrupt 3 | . 1 . 1 . . . . . . . . . . . 1 . . . . . . Smash 7 | . . . . . . . . . . 1 . . . 1 3 . . . . 2 . Sever 55 | . . . . . . . . . 6 6 . . 1 3 4 . . 1 3 21 10 Impale 10 | . . . . . . . . . . . . . . . 5 1 1 . . . 3 Melee Attacks 882 | . . . . . . 2 . . 66 47 1 . 4 85 147 7 14 16 28 210 255 Kinetic 5 | . . . . . . . . . . . . . . . . . . . . 5 . Impact 87 | . . . . . . 2 . . 1 10 1 . . 6 35 . . . . 32 . Slashing 642 | . . . . . . . . . 65 37 . . 4 68 40 4 4 13 28 173 206 Piercing 148 | . . . . . . . . . . . . . . 11 72 3 10 3 . . 49 Sneak Attacks 73 | . . . . . . . . . 12 1 . . . 1 23 7 12 7 2 1 7 Combat Hostiles 5 | . . . . . . . . . . . . . . . 2 . . . . . 3 Follow-up Attacks 344 | . . . . . . . . . 18 19 . . 1 39 55 4 1 3 8 89 107 Damage Inflicted 37335 | . 222 . 2686 1746 326 17 . 822 2623 1347 . . 252 1927 4593 1207 921 1116 1073 7006 9451 Guns 5369 | . 216 . 2333 1512 285 17 . 822 . . . . . . . . . . . . 184 Cannons 1589 | . . . 353 . . . . . . . . . . . 393 103 96 282 362 . . Explosions 2550 | . . . . 231 . . . . 801 . . . 160 . 143 728 . 120 . . 367 Melee 27732 | . . . . . . . . . 1800 1347 . . 92 1927 4057 376 825 711 711 7006 8880 Ramming 95 | . 6 . . 3 41 . . . 22 . . . . . . . . 3 . . 20 Kinetic 4051 | . . . 1233 1512 285 17 . 822 . . . . . . 61 . . . . 121 . Thermal 1681 | . 110 . 1428 . . . . . . . . . . . 143 . . . . . . Explosive 1519 | . . . . 231 . . . . 801 . . . . . . . . 120 . . 367 Electromagnetic 2194 | . 106 . 25 . . . . . . . . . 160 . 332 831 96 282 362 . . Impact 2353 | . . . . . . . . . . 246 . . . 206 717 . . . . 1184 . Slashing 21489 | . . . . . . . . . 1800 1101 . . 92 1603 1398 244 290 711 711 5701 7838 Piercing 3953 | . . . . . . . . . . . . . . 118 1942 132 535 . . . 1226 Highest Corruption 37 | . . . . . 1 1 . . 4 5 5 5 5 3 3 7 36 13 5 28 37 Average Corruption 8 | . . . . . 1 1 . . 3 4 5 5 5 1 3 6 12 12 5 15 26 Corruption Purged 27 | . . . . . . . . . . . . . . . . . 26 . . . 1 Corruption Blocked . | . . . . . . . . . . . . . . . . . . . . . . Effects 401 | . . . . . 8 7 . . 20 30 16 7 21 9 36 16 25 20 17 83 86 Message Errors 105 | . . . . . 2 4 . . 5 8 2 3 10 1 10 1 10 6 3 18 22 Matter Fused 80 | . . . . . 1 . . . 4 6 3 2 6 2 7 2 5 4 2 16 20 Heat Flow Errors 58 | . . . . . 5 . . . 3 7 3 1 . 1 3 1 2 3 4 9 16 Energy Discharges 53 | . . . . . . 1 . . 4 5 2 . 4 1 5 6 3 4 3 9 6 Parts Rejected 6 | . . . . . . . . . . . . . . . 2 1 1 . . 1 1 Parts Fused 4 | . . . . . . . . . . . . . . . 1 . . . . 2 1 Data Loss (minor) 52 | . . . . . . 1 . . 1 2 3 . . 4 5 3 2 1 3 16 11 Data Loss (major) 24 | . . . . . . . . . 3 1 2 . 1 . 2 1 1 . 1 8 4 Misfires 5 | . . . . . . 1 . . . . . . . . 1 1 . 2 . . . Alerts 8 | . . . . . . . . . . 1 1 1 . . . . 1 . 1 1 2 Misdirections 5 | . . . . . . . . . . . . . . . . . . . . 3 2 Weapon Failures 1 | . . . . . . . . . . . . . . . . . . . . . 1 Overload Shots . | . . . . . . . . . . . . . . . . . . . . . . Overflow Damage 2591 | . . . . 6 1 . . . 240 50 . . 34 140 535 33 124 177 55 692 504 Projectiles 15 | . . . . . . . . . . . . . . . . 15 . . . . . Explosions 84 | . . . . 6 . . . . . . . . 34 . . 16 . 16 . . 12 Melee 2492 | . . . . . 1 . . . 240 50 . . . 140 535 2 124 161 55 692 492 Knockbacks 13 | . . . . . . . . . . 3 . . . . 3 . . . . 7 . Impact 13 | . . . . . . . . . . 3 . . . . 3 . . . . 7 . Kinetic . | . . . . . . . . . . . . . . . . . . . . . . Secondary . | . . . . . . . . . . . . . . . . . . . . . . Self-Inflicted Damage 377 | . . . . . 20 . . . 244 . . . . . . 28 . . . . 85 Shots 5 | . . . . . . . . . 3 . . . . . . 1 . . . . 1 Rammed 6 | . 2 . . . 1 . . . 1 . . . . . . . . 1 . . 1 Targets Rammed 8 | . 2 . . 1 1 . . . 2 . . . . . . . . 1 . . 1 Kicked . | . . . . . . . . . . . . . . . . . . . . . . Crushed 2 | . . . . 1 . . . . 1 . . . . . . . . . . . . Highest Temperature 435 | . 435 . 270 48 272 . . 89 252 246 138 135 . 148 271 156 240 366 287 361 259 Average Temperature 96 | . 257 . 83 16 104 . . 26 92 99 68 79 . 54 75 70 101 115 102 135 82 Received Heat Transfer 3224 | . 90 . 510 261 24 . . 9 270 354 . . 9 109 110 36 . 90 99 609 644 Thermoelectric Energy+ 70 | . . . . . . . . . . . . . . . . . . . . . 70 Effects 7 | . 3 . . . . . . . . . . . . . . . . . 3 . 1 Shutdowns 1 | . 1 . . . . . . . . . . . . . . . . . . . . Energy Bleed 6 | . 2 . . . . . . . . . . . . . . . . . 3 . 1 Siege Activations . | . . . . . . . . . . . . . . . . . . . . . . Martial Activations . | . . . . . . . . . . . . . . . . . . . . . . Shielding Activations . | . . . . . . . . . . . . . . . . . . . . . . Robots Disrupted . | . . . . . . . . . . . . . . . . . . . . . . Combat Hostiles . | . . . . . . . . . . . . . . . . . . . . . . Robots Corrupted 12 | . . . . . 1 . . . . . . . . 1 3 4 . . 2 1 . Combat Hostiles 9 | . . . . . . . . . . . . . . . 3 4 . . 2 . . Parts Fried 14 | . . . . . 3 . . . . . . . . . 6 3 . . 1 1 . Impact Corruptions 23 | . . . . . 1 . . . . 1 . . . 4 6 . . . . 11 . Robots Melted . | . . . . . . . . . . . . . . . . . . . . . . Combat Hostiles . | . . . . . . . . . . . . . . . . . . . . . . Parts Melted 10 | . . . 10 . . . . . . . . . . . . . . . . . . Heat Transferred 4033 | . 407 . 3476 . . . . . . . . . . . 150 . . . . . . Parts Sabotaged 1 | . . . . . . . . . . . . . . . . . . . . . 1 Parts Stolen . | . . . . . . . . . . . . . . . . . . . . . . Parts Stripped 18 | . . . . . . . . . . . . . . . . . . . . 18 . Power Chain Reactions 1 | . . . . . . . . . . . . . . . 1 . . . . . . Alert | -11 -10 -10 -9 -9 -9 -9 -6 -6 -5 -5 -5 -5 -4 -4 -4 -4 -4 -4 -3 -3 -3 ------- Run | Yrd Mat Min Mat Sto Rec Scr Fac DSF Fac Upp Upp Zhi Pro Fac Ext Cet Arc Hub Res Qua Sec Maximum Alert Level 5 | . . . 1 1 . . . . 2 . . . . . 3 2 1 3 3 2 5 Low Security (%) 46 | 100 100 100 60 59 100 . 100 100 21 . . . . 100 65 . 59 60 . . . Level 1 30 | . . . 39 40 . . . . 67 . . . . . 17 . 40 10 . 58 54 Level 2 18 | . . . . . . . . . 11 . . . . . 5 100 . 13 93 41 33 Level 3 3 | . . . . . . . . . . . . . . . 10 . . 16 6 . 10 Level 4 . | . . . . . . . . . . . . . . . . . . . . . . Level 5 . | . . . . . . . . . . . . . . . . . . . . . . High Security . | . . . . . . . . . . . . . . . . . . . . . . Max Security . | . . . . . . . . . . . . . . . . . . . . . 1 Sterilizations 1 | . . . . . . . . 1 . . . . . . . . . . . . . Peak Influence 1645 | . 55 . 251 263 133 . 4 142 613 . . . . 77 873 655 307 998 722 545 1645 Initial 507 | . . . . 94 79 . . 2 74 . . . . . . 477 201 9 507 393 297 Average 246 | . 16 . 150 117 23 . . 77 285 . . . . 17 231 567 173 325 575 413 445 Influence Increases 10134 | . 82 . 913 520 198 . 4 259 1128 165 . . 30 380 1489 348 256 1296 741 837 1488 Destroy 0b10 Robot/C 4840 | . 60 . 540 300 60 . . 200 420 140 . . 20 200 720 160 80 300 340 520 780 Destroy 0b10 Robot/NC 575 | . 5 . 140 70 20 . . . 60 5 . . 10 5 95 10 45 70 10 20 10 Destroy Leader 902 | . 10 . 166 76 . . . 30 92 20 . . . 60 64 . . 66 64 74 180 Allied During Kill 1432 | . . . . . 12 . . 29 102 . . . . . 432 170 125 414 148 . . Successful Hack 160 | . 7 . 4 11 16 . 4 . . . . . . 42 17 . . . 33 . 26 Select Force Hacks 90 | . . . . . 90 . . . . . . . . . . . . . . . . Disable Machine 840 | . . . 30 45 . . . . 210 . . . . 15 90 . . 120 45 90 195 Destroy Structure 920 | . . . 18 18 . . . . 154 . . . . 58 56 8 6 326 86 58 132 Partial Spotted 15 | . . . . . . . . . . . . . . . . . . . . . 15 Lose Combat Pursuer 360 | . . . 15 . . . . . 90 . . . . . 15 . . . 15 75 150 Influence Decreases 9180 | . 82 . 688 539 404 . . 121 678 730 27 . 30 380 636 698 730 359 1007 1009 1062 Entered New Map 2249 | . . . . 131 127 . . 2 68 220 6 . . . . 376 302 20 459 307 231 Time Decay 5732 | . 82 . 638 398 277 . . . 470 470 21 . 30 310 496 262 368 269 398 642 601 Lost Part 543 | . . . 50 10 . . . . 40 40 . . . 33 40 20 . 10 10 60 230 Lost Ally 619 | . . . . . . . . 119 100 . . . . . 100 40 60 60 140 . . Purge Threat 37 | . . . . . . . . . . . . . . 37 . . . . . . . Squads Dispatched 54 | . 1 . 3 . . . . 2 5 . . . . 7 3 . . 2 6 5 20 Investigation 7 | . 1 . . . . . . . 2 . . . . 3 . . . . 1 . . Extermination 15 | . . . . . . . . . 1 . . . . 3 . . . 1 . 5 5 Reinforcement 20 | . . . 3 . . . . 2 2 . . . . 1 3 . . 1 5 . 3 Assault 8 | . . . . . . . . . . . . . . . . . . . . . 8 Garrison 3 | . . . . . . . . . . . . . . . . . . . . . 3 Intercept 1 | . . . . . . . . . . . . . . . . . . . . . 1 Searches Triggered . | . . . . . . . . . . . . . . . . . . . . . . Construction Impeded 2 | . . . . . . . . . . . . . . . 2 . . . . . . Haulers Reinforced 4 | . . . . . . . . . . . . . . . . . . 1 3 . . Active Scanning Responses . | . . . . . . . . . . . . . . . . . . . . . . Cargo Convoy Interrupts . | . . . . . . . . . . . . . . . . . . . . . . Stealth | -11 -10 -10 -9 -9 -9 -9 -6 -6 -5 -5 -5 -5 -4 -4 -4 -4 -4 -4 -3 -3 -3 --------- Run | Yrd Mat Min Mat Sto Rec Scr Fac DSF Fac Upp Upp Zhi Pro Fac Ext Cet Arc Hub Res Qua Sec Distress Signals 22 | . . . 3 1 . 1 . . 2 . . . . 2 2 2 . 2 6 1 . Communications Jammed 269 | . . . . . . . . . . . . . 2 . 124 57 . 33 20 14 19 Distress Signals 253 | . . . . . . . . . . . . . . . 124 57 . 33 20 14 5 Times Spotted 328 | . 4 . 40 16 2 2 . 11 22 11 . . 2 17 37 10 7 15 17 39 76 Peak Tracking Total 13 | . 3 . 6 4 1 2 . 4 6 4 . . 1 5 3 5 2 5 5 5 13 Tactical Retreats 15 | . . . 1 . . . . . 3 . . . . . 1 . . . 1 4 5 Traps | -11 -10 -10 -9 -9 -9 -9 -6 -6 -5 -5 -5 -5 -4 -4 -4 -4 -4 -4 -3 -3 -3 ------- Run | Yrd Mat Min Mat Sto Rec Scr Fac DSF Fac Upp Upp Zhi Pro Fac Ext Cet Arc Hub Res Qua Sec Traps Triggered 10 | . . . 1 1 . . . . 1 . . . . . 2 . . . 1 2 2 Indirectly . | . . . . . . . . . . . . . . . . . . . . . . Trap Hack Attempts . | . . . . . . . . . . . . . . . . . . . . . . Triggered . | . . . . . . . . . . . . . . . . . . . . . . Disarmed . | . . . . . . . . . . . . . . . . . . . . . . Reprogrammed . | . . . . . . . . . . . . . . . . . . . . . . Reused . | . . . . . . . . . . . . . . . . . . . . . . Traps Extracted . | . . . . . . . . . . . . . . . . . . . . . . Installed . | . . . . . . . . . . . . . . . . . . . . . . Triggered . | . . . . . . . . . . . . . . . . . . . . . . Objects Rigged 1 | . . . . . . . . . . . . . . . . . . . . . 1 Exploded 1 | . . . . . . . . . . . . . . . . . . . . . 1 Machines | -11 -10 -10 -9 -9 -9 -9 -6 -6 -5 -5 -5 -5 -4 -4 -4 -4 -4 -4 -3 -3 -3 ---------- Run | Yrd Mat Min Mat Sto Rec Scr Fac DSF Fac Upp Upp Zhi Pro Fac Ext Cet Arc Hub Res Qua Sec Machines Disabled 61 | . . . 2 3 . 1 . . 14 . 1 . . 1 6 . . 8 3 6 16 Max in Single Turn 3 | . . . 1 1 . 1 . . 3 . 1 . . 1 1 . . 1 1 1 1 Garrison Access 2 | . . . . . . . . . . . . . . . . . . . 2 . . Network Hub 1 | . . . . . . . . . . . . . . . . . . 1 . . . Machines Repaired . | . . . . . . . . . . . . . . . . . . . . . . Machines Dismantled 3 | . . . 1 2 . . . . . . . . . . . . . . . . . Machines Sabotaged . | . . . . . . . . . . . . . . . . . . . . . . Overloaded Fab Kills . | . . . . . . . . . . . . . . . . . . . . . . Hacking | -11 -10 -10 -9 -9 -9 -9 -6 -6 -5 -5 -5 -5 -4 -4 -4 -4 -4 -4 -3 -3 -3 --------- Run | Yrd Mat Min Mat Sto Rec Scr Fac DSF Fac Upp Upp Zhi Pro Fac Ext Cet Arc Hub Res Qua Sec Machines Accessed 64 | . 2 . 5 4 8 2 1 . 2 1 . 4 . 7 9 . . 2 6 6 5 Terminals 41 | . 1 . 4 4 5 . 1 . . . . . . 4 9 . . 2 2 5 4 Fabricators 1 | . . . . . . . . . . . . . . 1 . . . . . . . Repair Stations . | . . . . . . . . . . . . . . . . . . . . . . Recycling Units 10 | . 1 . . . 3 . . . 2 . . . . 2 . . . . 2 . . Scanalyzers 1 | . . . 1 . . . . . . . . . . . . . . . . . . Garrison Access 4 | . . . . . . . . . . . . . . . . . . . 2 1 1 Total Hacks 144 | . 5 . 11 12 14 6 1 . 5 1 . 17 . 16 14 . . 2 15 11 14 Successful 74 | . 1 . 6 7 10 6 1 . 2 1 . 17 . 7 5 . . . 5 1 5 Failed 70 | . 4 . 5 5 4 . . . 3 . . . . 9 9 . . 2 10 10 9 Catastrophic 17 | . 1 . 2 1 . . . . . . . . . . 1 . . 1 2 7 2 Database Lockouts . | . . . . . . . . . . . . . . . . . . . . . . Manual 95 | . 5 . 7 12 15 . . . 5 . . . . 11 7 1 . 2 5 11 14 Terminals 87 | . 3 . 7 12 11 . 1 . . . . . . 8 14 . . 2 8 9 12 Fabricators 3 | . . . . . . . . . . . . . . 3 . . . . . . . Repair Stations . | . . . . . . . . . . . . . . . . . . . . . . Recycling Units 17 | . 2 . . . 3 . . . 5 . . . . 5 . . . . 2 . . Scanalyzers 4 | . . . 4 . . . . . . . . . . . . . . . . . . Garrison Access 9 | . . . . . . . . . . . . . . . . . . . 5 2 2 Terminal Hacks 39 | . 1 . 1 1 . 6 1 . . 1 . 17 . 1 4 . . . 1 1 4 Record 5 | . . . . . . . . . . . . 5 . . . . . . . . . Part Schematic 5 | . 1 . . . . . . . . . . 4 . . . . . . . . . Robot Analysis 9 | . . . . . . 5 . . . . . 4 . . . . . . . . . Prototype ID Bank 4 | . . . . . . . . . . . . 4 . . . . . . . . . Open Door 4 | . . . . . . . . . . 1 . . . . 3 . . . . . . Open DSF 1 | . . . . . . . 1 . . . . . . . . . . . . . . Branch Access Points 3 | . . . 1 1 . . . . . . . . . . . . . . 1 . . Alert Level 1 | . . . . . . . . . . . . . . . . . . . . 1 . Unreport Threat 1 | . . . . . . . . . . . . . . 1 . . . . . . . Zone Layout 5 | . . . . . . . . . . . . . . . 1 . . . . . 4 Proto ID Catalog 1 | . . . . . . 1 . . . . . . . . . . . . . . . Fabricator Hacks 2 | . . . . . . . . . . . . . . 2 . . . . . . . Load Schematic 1 | . . . . . . . . . . . . . . 1 . . . . . . . Build 1 | . . . . . . . . . . . . . . 1 . . . . . . . Repair Station Hacks . | . . . . . . . . . . . . . . . . . . . . . . Recycling Unit Hacks . | . . . . . . . . . . . . . . . . . . . . . . Scanalyzer 4 | . . . 4 . . . . . . . . . . . . . . . . . . Insert Component 1 | . . . 1 . . . . . . . . . . . . . . . . . . Analyze 2 | . . . 2 . . . . . . . . . . . . . . . . . . Retrieve Study 1 | . . . 1 . . . . . . . . . . . . . . . . . . Garrison Access Hacks 2 | . . . . . . . . . . . . . . . . . . . 2 . . Seal Access 2 | . . . . . . . . . . . . . . . . . . . 2 . . Unauthorized Hacks 27 | . . . 1 6 10 . . . 2 . . . . 4 1 . . . 2 . 1 Terminals 20 | . . . 1 6 7 . . . . . . . . 3 1 . . . 1 . 1 Botnet 10 | . . . 1 2 2 . . . . . . . . 3 1 . . . 1 . . Detonate 1 | . . . . . . . . . . . . . . . . . . . . . 1 Skim 9 | . . . . 4 5 . . . . . . . . . . . . . . . . Fabricators 1 | . . . . . . . . . . . . . . 1 . . . . . . . Haulers 1 | . . . . . . . . . . . . . . 1 . . . . . . . Repair Stations . | . . . . . . . . . . . . . . . . . . . . . . Recycling Units 6 | . . . . . 3 . . . 2 . . . . . . . . . 1 . . Tunnel 3 | . . . . . 3 . . . . . . . . . . . . . . . . Scrapoids 3 | . . . . . . . . . 2 . . . . . . . . . 1 . . Scanalyzers . | . . . . . . . . . . . . . . . . . . . . . . Garrison Access . | . . . . . . . . . . . . . . . . . . . . . . Data Cores Recovered 2 | . 1 . . . . . . . . . . . . . . . . 1 . . . Used . | . . . . . . . . . . . . . . . . . . . . . . Hacking Detections 43 | . 2 . 5 3 3 . . . 1 . . . . 7 6 . . 2 3 6 5 Full Trace Events 5 | . 1 . 1 . . . . . . . . . . 3 . . . . . . . Feedback Events . | . . . . . . . . . . . . . . . . . . . . . . Feedback Blocked . | . . . . . . . . . . . . . . . . . . . . . . Robot Schematics Acquired 2 | . . . . . . . . . . . . . . . . . . . . . 2 Robots Built . | . . . . . . . . . . . . . . . . . . . . . . Authchips . | . . . . . . . . . . . . . . . . . . . . . . Time . | . . . . . . . . . . . . . . . . . . . . . . Total Robot Build Rating . | . . . . . . . . . . . . . . . . . . . . . . Part Schematics Acquired 14 | . 1 . 1 . . . . . . . . 4 . . . . . . . 5 3 Parts Built 2 | . . . . . . . . . . . . . . 2 . . . . . . . Authchips . | . . . . . . . . . . . . . . . . . . . . . . Time 62 | . . . . . . . . . . . . . . 62 . . . . . . . Total Part Build Rating 4 | . . . . . . . . . . . . . . 4 . . . . . . . Part Studies Acquired 1 | . . . 1 . . . . . . . . . . . . . . . . . . Parts Repaired . | . . . . . . . . . . . . . . . . . . . . . . Time . | . . . . . . . . . . . . . . . . . . . . . . Parts Recycled . | . . . . . . . . . . . . . . . . . . . . . . Recycled Matter . | . . . . . . . . . . . . . . . . . . . . . . Retrieved Matter . | . . . . . . . . . . . . . . . . . . . . . . Retrieved Components . | . . . . . . . . . . . . . . . . . . . . . . Parts Scanalyzed 1 | . . . 1 . . . . . . . . . . . . . . . . . . Part Schematics Acquired 1 | . . . 1 . . . . . . . . . . . . . . . . . . Parts Damaged . | . . . . . . . . . . . . . . . . . . . . . . Bothacking | -11 -10 -10 -9 -9 -9 -9 -6 -6 -5 -5 -5 -5 -4 -4 -4 -4 -4 -4 -3 -3 -3 ------------ Run | Yrd Mat Min Mat Sto Rec Scr Fac DSF Fac Upp Upp Zhi Pro Fac Ext Cet Arc Hub Res Qua Sec Used RIF Installer . | . . . . . . . . . . . . . . . . . . . . . . Robots Hacked 10 | . . . . . . . . . 3 . . . . . . . . . . 3 4 Non-combat 3 | . . . . . . . . . 3 . . . . . . . . . . . . Combat . | . . . . . . . . . . . . . . . . . . . . . . Robot Hacks Applied 3 | . . . . . . . . . 3 . . . . . . . . . . . . find_chute 1 | . . . . . . . . . 1 . . . . . . . . . . . . find_recycling 2 | . . . . . . . . . 2 . . . . . . . . . . . . Manual 7 | . . . . . . . . . . . . . . . . . . . . 3 4 Relay Couplers Released . | . . . . . . . . . . . . . . . . . . . . . . Fabnet Peak Effective % . | . . . . . . . . . . . . . . . . . . . . . . Robots Rewired 29 | . . . . . 16 . . . . . . . . . 13 . . . . . . Allies Hacked 3 | . . . . . . . . . 1 . . . . . 1 . . 1 . . . Hacks Repelled . | . . . . . . . . . . . . . . . . . . . . . . Allies | -11 -10 -10 -9 -9 -9 -9 -6 -6 -5 -5 -5 -5 -4 -4 -4 -4 -4 -4 -3 -3 -3 -------- Run | Yrd Mat Min Mat Sto Rec Scr Fac DSF Fac Upp Upp Zhi Pro Fac Ext Cet Arc Hub Res Qua Sec Total Allies 59 | . . . . . 16 . . . 10 . . . . . 23 5 . . 5 . . Largest Group 20 | . . . . . 15 14 12 12 5 . . . . . 20 17 15 12 6 . . Highest-Rated Group 1104 | . . . . . 217 196 163 165 238 . . . . . 985 1104 905 778 335 . . Highest-Rated Ally 159 | . . . . . 34 27 27 27 50 . . . . . 159 159 96 96 96 . . Initial UFD Resources 27 | . . . . . . . 24 24 27 21 21 21 23 23 23 23 23 23 26 23 23 Total Orders 28 | . . . . . . 1 2 1 . . 6 . 13 5 . . . . . . . STAY 2 | . . . . . . 1 1 . . . . . . . . . . . . . . FOLLOW 1 | . . . . . . . 1 . . . . . . . . . . . . . . COLLECT 1 | . . . . . . . . 1 . . . . . . . . . . . . . EXPLORE 13 | . . . . . . . . . . . 3 . 7 3 . . . . . . . RETURN 11 | . . . . . . . . . . . 3 . 6 2 . . . . . . . Ally Attacks 623 | . . . . . 13 15 . 25 67 . . . . . 230 43 26 111 93 . . Total Damage 17998 | . . . . . 138 276 . 400 2330 . . . . . 5669 1080 849 4962 2294 . . Kills 95 | . . . . . 1 2 . 3 14 . . . . . 23 6 6 29 11 . . Allies Corrupted 1 | . . . . . . . . . 1 . . . . . . . . . . . . Allies Melted 1 | . . . . . . . . . . . . . . . . . . 1 . . . Intel | -11 -10 -10 -9 -9 -9 -9 -6 -6 -5 -5 -5 -5 -4 -4 -4 -4 -4 -4 -3 -3 -3 ------- Run | Yrd Mat Min Mat Sto Rec Scr Fac DSF Fac Upp Upp Zhi Pro Fac Ext Cet Arc Hub Res Qua Sec Active Infowar (turns) 13819 | . . . . . . . . . 901 891 609 388 980 1385 1627 568 848 584 923 2313 1802 Sensors 6613 | . . . . . . . . . 281 891 605 388 745 910 46 . . . 300 1234 1213 Terrain 5229 | . . . . . . . . . 638 . . . . 1116 44 . . 530 573 1146 1182 Traps 2 | . . . . . . . . . . 2 . . . . . . . . . . . Seismic 620 | . . . . . . . . . 620 . . . . . . . . . . . . Jamming 11282 | . . . . . . . . . . . 512 388 980 1385 1627 568 848 584 726 2311 1353 Robot Analysis Total 9 | . . . . . . 5 . . . . . 4 . . . . . . . . . Derelict Logs Recovered 2 | . . . . . . . . . . . . . 2 . . . . . . . . Drone Launches 11 | . . . . . . . . . . . 2 . 6 3 . . . . . . . Drone Recoveries 9 | . . . . . . . . . . . 2 . 5 2 . . . . . . . Exploration | -11 -10 -10 -9 -9 -9 -9 -6 -6 -5 -5 -5 -5 -4 -4 -4 -4 -4 -4 -3 -3 -3 ------------- Run | Yrd Mat Min Mat Sto Rec Scr Fac DSF Fac Upp Upp Zhi Pro Fac Ext Cet Arc Hub Res Qua Sec Turns Passed 23305 | 67 285 229 2848 1167 1397 2323 69 347 1185 1197 609 388 980 1385 1627 568 848 584 946 2313 1943 Spaces Moved 10603 | 37 148 137 1094 422 730 1540 39 138 457 481 279 225 335 457 699 255 355 298 443 1064 970 Core 3 | 3 . . . . . . . . . . . . . . . . . . . . . Treads 7215 | 34 148 137 1005 384 . . . 92 457 481 279 225 335 457 31 229 355 298 443 1064 761 Legs 5 | . . . . . . . . . . . . . . . . . . . . . 5 Wheels 3176 | . . . 89 38 730 1540 39 46 . . . . . . 668 26 . . . . . Hover . | . . . . . . . . . . . . . . . . . . . . . . Flight . | . . . . . . . . . . . . . . . . . . . . . . Fastest Speed 30 | 50 160 160 160 116 116 116 150 150 162 164 164 164 164 162 160 164 163 163 158 158 30 Average Speed 171 | 151 160 160 209 206 116 126 150 157 212 230 164 164 164 230 171 179 194 163 163 166 160 Slowest Speed 248 | 160 160 160 240 213 116 135 150 162 244 245 164 164 164 245 242 247 247 163 248 243 240 Overloaded Moves . | . . . . . . . . . . . . . . . . . . . . . . Propulsion Burnouts . | . . . . . . . . . . . . . . . . . . . . . . Robots Hopped . | . . . . . . . . . . . . . . . . . . . . . . Potential Cave-ins 10 | . . . . . . . . . 2 . . . . . . . . 4 . . 4 Cave-ins Triggered . | . . . . . . . . . . . . . . . . . . . . . . Teleports 1 | . . . . . . . . . . . . . . . . . . . . . 1 Microwarps 14 | . . . . . . . . . . . . . . . . . . . . . 14 Exploration Rate (%) 51 | 3 27 30 80 48 85 74 1 80 10 61 62 60 98 15 66 56 97 34 16 83 56 Regions Visited 21 Branch Regions 14 Pre-discovered Areas 9 | . . 1 . . 5 . . . . . . 3 . . . . . . . . . Known Exits Taken 10 | . . . 1 1 . . 1 . 1 1 1 1 1 . . . . . 1 1 . Unknown Exits Taken 10 | 1 1 1 . . 1 1 . . . . . . . 1 1 1 1 1 . . . Scrap Searched 15 | . . 1 . . . 9 . . . 2 3 . . . . . . . . . . Spaces Dug 130 | . . . . . . 4 . . 15 3 . . . 27 4 . . 1 12 29 35 Terrain Destroyed 315 | . . . 14 14 . 3 . . 31 3 . . . 27 16 . . 85 12 29 81 Melee 59 | . . . . . . . . . 8 1 . . . 9 1 . . 1 8 18 13 Projectile 1 | . . . . . . . . . . . . . . . . . . . . 1 . AOE 186 | . . . 14 14 . . . . 16 . . . . . 12 . . 84 . . 46 Terrain Rammed . | . . . . . . . . . . . . . . . . . . . . . . Walls Destroyed . | . . . . . . . . . . . . . . . . . . . . . . Machines Disabled . | . . . . . . . . . . . . . . . . . . . . . . Actions | -11 -10 -10 -9 -9 -9 -9 -6 -6 -5 -5 -5 -5 -4 -4 -4 -4 -4 -4 -3 -3 -3 --------- Run | Yrd Mat Min Mat Sto Rec Scr Fac DSF Fac Upp Upp Zhi Pro Fac Ext Cet Arc Hub Res Qua Sec Total 14553 | 45 170 145 1413 561 1259 1908 48 243 606 535 429 246 757 713 1007 353 495 363 623 1428 1206 Wait 1849 | . 3 7 63 33 294 322 3 12 23 7 122 . 411 82 91 36 101 5 59 85 90 Move 10392 | 36 147 136 1093 421 729 1539 38 137 456 480 278 224 334 456 698 254 354 297 442 1063 780 Hop . | . . . . . . . . . . . . . . . . . . . . . . Pick Up 226 | 1 4 1 47 6 1 12 . 25 16 6 6 3 . 19 16 7 2 4 13 17 20 Fast Attach 174 | 7 1 . 17 2 . 1 2 7 10 3 5 8 . 13 10 7 10 5 15 19 32 Attach 84 | . . . 5 1 . 1 4 3 5 3 2 . . 6 4 7 2 . 6 10 25 Detach 23 | . . . 1 . . 1 . . 2 . . 1 . . 1 . 2 . 3 5 7 Swap 377 | . 1 . 15 9 2 13 1 9 24 8 5 . 8 62 21 11 3 11 24 75 75 Drop 331 | 1 . . 39 8 . 15 . 32 25 4 10 10 . 31 20 19 7 9 26 40 35 Fire 367 | . 12 1 129 65 11 . . 18 3 . . . 2 . 57 9 3 20 17 10 10 Melee 463 | . . . . . . 2 . . 40 23 1 . 2 44 73 3 11 11 18 104 131 Ram 1 | . . . . . 1 . . . . . . . . . . . . . . . . Kick . | . . . . . . . . . . . . . . . . . . . . . . Crush 7 | . 2 . . 1 . . . . 2 . . . . . . . . 1 . . 1 Escape Stasis 18 | . . . . 2 . . . . . . . . . . 16 . . . . . . Rewire 221 | . . . . . 221 . . . . . . . . . . . . . . . . Trap . | . . . . . . . . . . . . . . . . . . . . . . Miscellaneous 20 | . . . 4 13 . 2 . . . 1 . . . . . . . . . . . Route ------- -11/Scrapyard -10/Materials (discovered 2 exits: *Mat / [*Min]) -10/Mines -9/Materials (discovered 5 exits: [*Mat x2] / *Min x2 / *Sto) -9/Storage (discovered 2 exits: [*Mat] / *Rec) -9/Recycling (discovered 2 exits: Fac / *Scr) -9/Scraptown (discovered 2 exits: *Fac x2) -6/Factory -6/DSF -5/Factory -5/Upper Caves -5/Upper Caves -5/Zhirov -4/Proximity Caves -4/Factory -4/Extension (discovered 2 exits: *Res / *Cet) -4/Cetus (discovered 2 exits: *Res / [*Arc]) -4/Archives (discovered 3 exits: *Res / *Hub x2) -4/Hub_04(d) (discovered 2 exits: *Res x2) -3/Research (discovered 3 exits: Arm / *Qua x2) -3/Quarantine (discovered 3 exits: [*Res] / *Sec / [*Frg]) -3/Section 7 (discovered 1 exit: [*Res]) History --------- Turn | Location | Event 4 | -11/Scrapyard | Discovered new exit (range 15) 68 | -11/Scrapyard | Entered Materials 270 | -10/Materials | Discovered new exit (range 16) 314 | -10/Materials | Build established: Mutant 318 | -10/Materials | Discovered new exit (range 16) 353 | -10/Materials | Entered Mines 354 | -10/Mines | Learned location of Storage (-9) 476 | -10/Mines | Discovered new exit (range 14) 582 | -10/Mines | Entered Materials 582 | -9/Materials | Evolved 2 slots: Propulsion x1, Utility x1 695 | -9/Materials | Discovered new exit (range 16) 1813 | -9/Materials | Discovered new exit (range 3) 1849 | -9/Materials | Discovered new exit (range 15) 2131 | -9/Materials | Discovered new exit (range 15) 2606 | -9/Materials | Discovered new exit (range 10) 2994 | -9/Materials | Identified exit to Mines 2994 | -9/Materials | Identified exit to Storage 3430 | -9/Materials | Entered Storage 3694 | -9/Storage | Identified exit to Recycling 4025 | -9/Storage | Discovered new exit (range 15) 4322 | -9/Storage | Core integrity fell below 50% 4597 | -9/Storage | Entered Recycling 5105 | -9/Recycling | Build established: Commander-Mutant 5678 | -9/Recycling | Scanned before Scraplab entrance 5695 | -9/Recycling | Entered Scraplab 5704 | -9/Recycling | Discovered new exit (range 3) 5750 | -9/Recycling | Learned location of 1 exit from Storage 5793 | -9/Recycling | Identified exit to Factory 5825 | -9/Recycling | Learned location of 1 exit from Storage 5845 | -9/Recycling | Learned location of Zion (-6) 5856 | -9/Recycling | Learned Storage trap positions 5882 | -9/Recycling | Learned Materials security intel 5910 | -9/Recycling | Learned location of 1 exit from Recycling 5946 | -9/Recycling | Learned Materials trap positions 5994 | -9/Recycling | Entered Scraptown 5994 | -9/Scraptown | Accompanied by 14 allies 6151 | -9/Scraptown | Heard Great Nut preacher, LISTEN AND RECITE! 6179 | -9/Scraptown | Visited Bundlers 6295 | -9/Scraptown | Visited TADAMA 6329 | -9/Scraptown | Discovered new exit (range 9) 6482 | -9/Scraptown | Visited Junk Repository 6536 | -9/Scraptown | Visited Shadow of the Wyrm 6552 | -9/Scraptown | Visited UFD Registry 6552 | -9/Scraptown | Registered with UFD as "Carbonspreader" 6585 | -9/Scraptown | Visited Scrap Suit Storage 6612 | -9/Scraptown | Visited Research Penetration Think Tank 6638 | -9/Scraptown | Visited Analyses Database 6750 | -9/Scraptown | Visited Supply Room 6781 | -9/Scraptown | Visited DA-N13 Charitable Foundation 6786 | -9/Scraptown | Found DCF Scrap (29 items) 6846 | -9/Scraptown | Visited LU-1G1's Boring Crew 6897 | -9/Scraptown | Visited Chapter 10 6920 | -9/Scraptown | Visited Derelict Rescue Squad 6947 | -9/Scraptown | Visited Science Guys 7313 | -9/Scraptown | System corruption cleaned by C-Scrubber 7699 | -9/Scraptown | Discovered new exit (range 5) 7820 | -9/Scraptown | Found DRS Beacon 7897 | -9/Scraptown | Met Optimus 7897 | -9/Scraptown | Accepted into 0bPrime 8292 | -9/Scraptown | Civil war broke out across Scraptown 8302 | -9/Scraptown | Found Prototype Special Weapon 8302 | -9/Scraptown | Identified LU-1G1's Laser Shovel 8317 | -9/Scraptown | Entered Factory 8317 | -6/Factory | Accompanied by 12 allies 8317 | -6/Factory | Evolved 6 slots: Propulsion x2, Utility x2, Weapon x2 8339 | -6/Factory | Lost 4 allies 8382 | -6/Factory | Identified exit to DSF 8386 | -6/Factory | Entered DSF 8386 | -6/DSF | Accompanied by 12 allies 8428 | -6/DSF | Additional patrols routed to DSF 8566 | -6/DSF | Sterilization system engaged 8567 | -6/DSF | Lost 11 allies 8586 | -6/DSF | Ambient heat levels rising (+10) 8601 | -6/DSF | Ambient heat levels rising (+10) 8616 | -6/DSF | Ambient heat levels rising (+10) 8631 | -6/DSF | Ambient heat levels rising (+10) 8646 | -6/DSF | Ambient heat levels rising (+10) 8661 | -6/DSF | Ambient heat levels rising (+10) 8676 | -6/DSF | Ambient heat levels rising (+10) 8691 | -6/DSF | Ambient heat levels rising (+10) 8691 | -6/DSF | Discovered new exit (range 15) 8706 | -6/DSF | Ambient heat levels rising (+10) 8721 | -6/DSF | Ambient heat levels rising (+10) 8733 | -6/DSF | Entered Factory 8733 | -5/Factory | Evolved 2 slots: Power x1, Weapon x1 8897 | -5/Factory | Spotted B-75 Beast 8963 | -5/Factory | Lost 3 parts (1p1n1u) 8982 | -5/Factory | Scrapoids reinforcements arrived? 8989 | -5/Factory | Allies destroyed B-75 Beast 9125 | -5/Factory | Lost 3 allies 9305 | -5/Factory | Discovered new exit (range 6) 9310 | -5/Factory | Build established: Scavenger-Mutant 9387 | -5/Factory | Identified exit to Upper Caves 9749 | -5/Factory | Build established: Scavenger-Gladiator 9770 | -5/Factory | Scrapoid reinforcements arrived 9873 | -5/Factory | Lost 3 allies 9918 | -5/Factory | Entered Upper Caves 9921 | -5/Upper Caves | Activated DRS Beacon 10292 | -5/Upper Caves | Attracted the attention of an 0b10 checkpoint 10813 | -5/Upper Caves | Lost 3 parts (1p2u) 11077 | -5/Upper Caves | Build established: Gladiator 11088 | -5/Upper Caves | Discovered new exit (range 15) 11113 | -5/Upper Caves | Identified exit to Upper Caves 11115 | -5/Upper Caves | Entered another Upper Caves area 11163 | -5/Upper Caves | Found DCF Scrap (10 items) 11241 | -5/Upper Caves | Found Alien Artifact 11530 | -5/Upper Caves | Build established: Derelict-Mutant 11687 | -5/Upper Caves | Discovered new exit (range 13) 11708 | -5/Upper Caves | Identified exit to Zhirov 11724 | -5/Upper Caves | Entered Zhirov 11724 | -5/Zhirov | Discovered new exit (range 3) 11754 | -5/Zhirov | Met Zhirov 11792 | -5/Zhirov | Learned location of Quarantine (-3) 11792 | -5/Zhirov | Learned location of Testing (-2) 11792 | -5/Zhirov | Learned location of Command (-1) 11802 | -5/Zhirov | Zhirov requested help retrieving the SGEMP Prototype 11830 | -5/Zhirov | Found Alien Artifact 11830 | -5/Zhirov | Identified Integrated Reactor 11830 | -5/Zhirov | Installed Integrated Reactor, increased core energy generation (+10) 11853 | -5/Zhirov | Found Alien Artifact 11976 | -5/Zhirov | Identified exit to Proximity Caves 12112 | -5/Zhirov | Entered Proximity Caves 12119 | -4/Proximity Caves | Learned Research stockpile data 12474 | -4/Proximity Caves | Learned Research terminal intel 12851 | -4/Proximity Caves | Attracted the attention of an 0b10 checkpoint 12997 | -4/Proximity Caves | Discovered new exit (range 20) 13026 | -4/Proximity Caves | Identified exit to Factory 13092 | -4/Proximity Caves | Entered Factory 13092 | -4/Factory | Evolved 2 slots: Utility x2 13522 | -4/Factory | Lost 3 parts (1u2w) 14019 | -4/Factory | Discovered new exit (range 16) 14077 | -4/Factory | Build established: Assassin 14400 | -4/Factory | Build established: Gladiator 14444 | -4/Factory | Fabricated Med. Armor Plating (x2) 14477 | -4/Factory | Entered Extension 15165 | -4/Extension | Rescued a captive Derelict 15166 | -4/Extension | Rescued a captive Derelict 15240 | -4/Extension | Rescued a captive Derelict 15242 | -4/Extension | Rescued a captive Derelict 15318 | -4/Extension | Rescued a captive Derelict 15343 | -4/Extension | Rescued A7 15358 | -4/Extension | Rescued a captive Derelict 15360 | -4/Extension | Rescued a captive Derelict 15385 | -4/Extension | Rescued a captive Derelict 15386 | -4/Extension | Rescued a captive Derelict 15568 | -4/Extension | Build established: Commander-Gladiator 15725 | -4/Extension | Spotted B-86 Titan 15740 | -4/Extension | Allies destroyed B-86 Titan 15777 | -4/Extension | Disrupted transfer network 15781 | -4/Extension | Spotted B-86 Titan 15797 | -4/Extension | Allies destroyed B-86 Titan 15820 | -4/Extension | Attached CPS modules to A7 16055 | -4/Extension | Discovered new exit (range 16) 16055 | -4/Extension | Discovered new exit (range 16) 16101 | -4/Extension | P-70 Sage assimilated allied 53-TRX(b) 16104 | -4/Extension | Entered Cetus 16104 | -4/Cetus | Accompanied by 16 allies (A7) 16109 | -4/Cetus | Acquired a Cetus Manufacturing Module code from A7 16125 | -4/Cetus | Spotted Cetus Guard 16131 | -4/Cetus | Spotted Cetus Guard 16131 | -4/Cetus | Spotted Cetus Guard 16132 | -4/Cetus | Spotted Cetus Guard 16134 | -4/Cetus | Destroyed Cetus Guard 16139 | -4/Cetus | Destroyed Cetus Guard 16140 | -4/Cetus | Destroyed Cetus Guard 16146 | -4/Cetus | Destroyed Cetus Guard 16253 | -4/Cetus | Started Cetus Manufacturing Module 16273 | -4/Cetus | Discovered new exit (range 15) 16278 | -4/Cetus | Manufactured an Enhanced Grunt 16302 | -4/Cetus | Spotted Cetus Guard 16302 | -4/Cetus | Spotted Cetus Guard 16303 | -4/Cetus | Manufactured an Enhanced Grunt 16304 | -4/Cetus | Spotted Cetus Guard 16304 | -4/Cetus | Spotted Cetus Guard 16305 | -4/Cetus | Allies destroyed Cetus Guard 16312 | -4/Cetus | Attached CPS modules to Cetus Guard 16315 | -4/Cetus | Allies destroyed Cetus Guard 16316 | -4/Cetus | Allies destroyed Cetus Guard 16322 | -4/Cetus | Allies destroyed Cetus Guard 16328 | -4/Cetus | Manufactured an Enhanced Grunt 16334 | -4/Cetus | Discovered new exit (range 16) 16349 | -4/Cetus | Met Revision 17 16353 | -4/Cetus | Manufactured an Enhanced Grunt 16378 | -4/Cetus | Manufactured an Enhanced Grunt 16609 | -4/Cetus | Murdered A7 16617 | -4/Cetus | Found Prototype Protection 16617 | -4/Cetus | Identified Med. Regenerative Plating 16656 | -4/Cetus | Extracted ID and sensor layout for unrecognized location from A7's data core 16672 | -4/Cetus | Entered Archives 16672 | -4/Archives | Accompanied by 16 allies 16736 | -4/Archives | Lost 4 allies 16744 | -4/Archives | Discovered new exit (range 16) 16795 | -4/Archives | Discovered new exit (range 15) 17034 | -4/Archives | System corruption reached 10% 17072 | -4/Archives | System corruption reached 30% 17219 | -4/Archives | Discovered new exit (range 13) 17520 | -4/Archives | Entered Hub_04(d) 17520 | -4/Hub_04(d) | Accompanied by 12 allies 17651 | -4/Hub_04(d) | Discovered new exit (range 24) 17673 | -4/Hub_04(d) | Spotted B-86 Titan 17694 | -4/Hub_04(d) | Allies destroyed B-86 Titan 17931 | -4/Hub_04(d) | Discovered new exit (range 8) 17972 | -4/Hub_04(d) | Lost 3 allies 18016 | -4/Hub_04(d) | Network Hub disabled 18027 | -4/Hub_04(d) | Disrupted transfer network 18047 | -4/Hub_04(d) | Lost 4 allies 18104 | -4/Hub_04(d) | Entered Research 18104 | -3/Research | Accompanied by 2 allies 18104 | -3/Research | Evolved 2 slots: Power x1, Propulsion x1 18106 | -3/Research | Loaded intel: 24 terminal locations 18215 | -3/Research | Build established: Scavenger-Gladiator 18304 | -3/Research | Revision forces began assault on 0b10 18323 | -3/Research | Met up with Revision 17++ 18397 | -3/Research | Identified exit to Armory 18397 | -3/Research | Identified exit to Quarantine 18453 | -3/Research | Scrapoids reinforcements arrived? 18627 | -3/Research | Build established: Scavenger-Mutant 18669 | -3/Research | Lost 7 allies 18747 | -3/Research | Found Gamma Bomb Array 18804 | -3/Research | Research terminal network offline 19050 | -3/Research | Entered Quarantine 19103 | -3/Quarantine | Found Alien Impact Weapon 19249 | -3/Quarantine | Discovered new exit (range 15) 19865 | -3/Quarantine | Found Alien Artifact 19947 | -3/Quarantine | System corruption reached 10% 20150 | -3/Quarantine | Found Alien Artifact 20177 | -3/Quarantine | Found Prototype Launcher 20177 | -3/Quarantine | Identified Mni. Smartbomb Launcher 20667 | -3/Quarantine | Build established: Scavenger-Gladiator 20834 | -3/Quarantine | Found Alien Slashing Weapon 20834 | -3/Quarantine | Identified Sigix Broadsword 21157 | -3/Quarantine | Identified Core Stripper 21166 | -3/Quarantine | Spotted Fortress 21190 | -3/Quarantine | Destroyed Fortress 21208 | -3/Quarantine | Found Prototype Reactor 21208 | -3/Quarantine | Identified Vortex Chain Reactor 21225 | -3/Quarantine | Found Prototype Device 21225 | -3/Quarantine | Identified Exp. Force Field 21346 | -3/Quarantine | Discovered new exit (range 5) 21346 | -3/Quarantine | Discovered new exit (range 6) 21351 | -3/Quarantine | Identified exit to Section 7 21363 | -3/Quarantine | Entered Section 7 21398 | -3/Section 7 | Found Alien Artifact 21699 | -3/Section 7 | Spotted S7 Guard 21735 | -3/Section 7 | Destroyed S7 Guard 21757 | -3/Section 7 | Found Alien Artifact 21791 | -3/Section 7 | System corruption reached 30% 21970 | -3/Section 7 | Build established: Assassin 22048 | -3/Section 7 | Found Alien Artifact 22146 | -3/Section 7 | Found Alien Artifact 22824 | -3/Section 7 | Garrison activated, responded to threat 22863 | -3/Section 7 | First assault squad dispatched 22883 | -3/Section 7 | Identified Core Reset Matrix 22883 | -3/Section 7 | Identified Dimensional Node Initializer 22883 | -3/Section 7 | Identified Microwarp Drive 22883 | -3/Section 7 | Identified Integrated Mediator 22883 | -3/Section 7 | Identified Integrated Dissipator 22883 | -3/Section 7 | Identified Transdimensional Reconstructor 22883 | -3/Section 7 | Identified Integrated Thermoelectric Network 22883 | -3/Section 7 | Identified Subatomic Replicator 22883 | -3/Section 7 | Used Core Reset Matrix 22887 | -3/Section 7 | Detected hypermatrix surge 22887 | -3/Section 7 | Sensed 18 artifacts in vicinity 22911 | -3/Section 7 | Warped through subspace 22942 | -3/Section 7 | Lost 4 parts (4u) 22964 | -3/Section 7 | Installed Integrated Thermoelectric Network, gained heat-energy exchange potential 22965 | -3/Section 7 | Installed Integrated Dissipator, increased core heat dissipation (+20) 22966 | -3/Section 7 | Installed Integrated Mediator, increased core attachment efficiency 23082 | -3/Section 7 | Core integrity fell below 50% 23143 | -3/Section 7 | Spotted B-86 Titan 23158 | -3/Section 7 | Spotted S7 Guard 23165 | -3/Section 7 | Found Core Membrane 23165 | -3/Section 7 | Installed Core Membrane, gained immunity to corruption 23167 | -3/Section 7 | Spotted S7 Guard 23171 | -3/Section 7 | Discovered new exit (range 3) 23175 | -3/Section 7 | Initialized slip node 23211 | -3/Section 7 | Spotted S7 Guard 23231 | -3/Section 7 | Found Core Regenerator 23231 | -3/Section 7 | Used Core Regenerator, restored core integrity (+325) 23246 | -3/Section 7 | Spotted Executioner 23246 | -3/Section 7 | Spotted Executioner 23247 | -3/Section 7 | Scanned by Researcher 23248 | -3/Section 7 | Intercept squad dispatched 23266 | -3/Section 7 | Lost 11 parts (4p3n4u) 23267 | -3/Section 7 | Spotted Tracker 23269 | -3/Section 7 | Spotted Tracker 23284 | -3/Section 7 | Integrated with Sigix Exoskeleton 23294 | -3/Section 7 | Core integrity fell below 20% 23301 | -3/Section 7 | Spotted Combat Programmer 23306 | -3/Section 7 | Self-destructed Last Messages --------------- 23296_ Core Membrane filtered system corruption (1). 23298_ Acquired LU-1G1's Laser Shovel. 23300_ Dropped Unknown Reactor. 23300_ Dropped Adv. Remote Datajack. 23301_ Acquired Subatomic Replicator. 23301_ Unable to initiate replication process, detached Subatomic Replicator. 23303_ Acquired Subatomic Replicator. 23303_ Unable to initiate replication process, detached Subatomic Replicator. 23304_ Core Membrane filtered system corruption (1). 23304_ Acquired Subatomic Replicator. 23304_ Unable to initiate replication process, detached Subatomic Replicator. 23304_ Penetrated by EMDS Slug. 23304_ Core Membrane filtered system corruption (1). [Achievement: Collector] Map ----- +----------------------------------------------------+ | "?????????????? ??????" ?????????? | | ???????????????????????" ?????????? | | ???????????????????????" ?????????? | | ????????????????????""" """#??????? | | ???????????????????? """#??????? | | ???????????????????? """"#??????? | | ?????????????????? """"#??????? | | ????????????????? """#??????? | | ????????????? """#??????? | | ???????????? """#??????? | | """#??????? | | ???????????? p """"""" " ""#??????? | | ???????????"" ### """"""" """#??????? | | ??????????"""""""### """"""" """#??????? | | ?????????##############/p/########""#####??????? | | ?????????###########""" """#### ######???????? | | ????????############"""p """### ########??????? | | ???????#############""" "" ## ##########?????? | | ???????#############""" " # ###########?????? | | ???????#############"" " ";############?????? | | ??????##############""" p ##############????? | | ??????##############"" "##############????? | | ??????##############" p ##############????? | | ??????##############" ss ##############????? | | ??????##############" /*= "##############????? | | ?????###############" / /X!T"###############???? | | ??????############## "| / "##############????? | | ??????##############" "!" "##############????? | | ??????##############" "#" "##############????? | | ??????##############"""###"""##############????? | | ??????#####################################????? | | ???????###################################?????? | | ???????###################################?????? | | ???????###################################?????? | | ????????#################################??????? | | ????????#################################??????? | | ?????????###############################???????? | | ??????????#############################????????? | | ??????????#############################????????? | | ???????????###########################?????????? | | ????????????#########################??????????? | | ?????????????#######################???????????? | | ???????????????###################?????????????? | | ????????????????#################??????????????? | | ???????????????????###########?????????????????? | | ????????????????????????#??????????????????????? | | ???????????????????????????????????????????????? | | ???????????????????????????????????????????????? | | ???????????????????????????????????????????????? | | ???????????????????????????????????????????????? | +----------------------------------------------------+ Best States ------------- Heat Dissipation 126 Coolant Potential 100 Energy Generation 89 Energy Capacity 1525 Matter Stores 450 Matter Capacity 450 Sight Range 16 Robot Scan Range 18 Terrain Scan Range 24 Terrain Scan Density 210 Jamming Range 14 Armor Coverage 675 Resistance: KI 50 Resistance: TH 50 Resistance: EX 50 Resistance: EM 50 Resistance: I 50 Resistance: S 50 Resistance: P 50 Core Shielding 30 Propulsion Shielding 66 Weapon Shielding 66 Weapon Cycling 20 Melee Speed Boost 40 Phase Shifting 10 Evasion (%) 50 Targeting Accuracy 8 Melee Accuracy 8 Target Analysis 8 Core Analysis 6 Recoil Reduction 6 Offensive Hacking 24 Defensive Hacking 10 Authchip Count 1 Item Schematics ----------------- None Robot Schematics ------------------ B-74 Champion | -3/Section 7 | Archive Fabricated ------------ Med. Armor Plating | x2 | -4/Factory Repaired ---------- Nothing Studied --------- None Alien Tech Used ----------------- Integrated Reactor Sigix Broadsword Core Stripper Core Reset Matrix Transdimensional Reconstructor Integrated Thermoelectric Network Integrated Dissipator Integrated Mediator Microwarp Drive Core Membrane Dimensional Node Initializer Core Regenerator Sigix Exoskeleton Sigix Sheargun Subatomic Replicator Achievements -------------- Collector Integration Complete Ponder That! Vwoop! Challenges ------------ None Game ------ Seed ColdRelayUnit Manual? 0 Play Time 03:49:15 Cumulative 642.5 hours Start 2026.09.17 @ 20:29:24 End 2026.09.18 @ 01:07:11 Sessions 1 Manual Loads 0 Difficulty Rogue Special Mode None Game No. 512 Rogue 512 Adventurer 0 Explorer 0 Win Type - Total 22 Types 13/0/4/1/0/0/0/2/0/2 Lore% 70 Gallery% 75 Achievement% 72 Wizard Run 0 Options --------- Layout 1 ASCII 0 Keyboard 0 Movement Mouse Keybinds 0 Fullscreen 2 Font 24/Cog Map View 50x35 Zoom Use 25% Tactical HUD 1 Map Filters NONE Filters NONE Steam 1 RUN: b9da7e5d-0c03-44ac-b1f9-d3e6c8f26a8d